Cogmind - Beta 10.2 @@@ ROGUE MODE // 2022.02.11 @ 12:38:40 Player: FResh Result: Destroyed by as-69322 with Assembled Heavy Rifle Performance ------------- Evolutions (0) 0 Regions Visited (4) 800 Robots Destroyed (14) 70 Value Destroyed (341) 341 Prototype IDs (25) 500 Alien Tech Used (0) 0 Bonus (300) 300 TOTAL SCORE: 2011 Bonus ------- Aligned with FarCom 300 Cogmind --------- Core Integrity 0/250 Matter 141/300 Energy 98/100 System Corruption 8% Temperature Cool (1) Movement Treading (220) Ox3 Location -9/Mines Parts ------- > --- POWER (1) -------- (None) > --- PROPULSION (2) --- Light Treads > --- UTILITY (2) ------ Humpback > --- WEAPON (2) ------- (None) > --- INVENTORY (24) --- High-capacity Storage Unit High-capacity Storage Unit Humpback AWS/Autocannon Peak State ------------ > --- POWER ------------ Ion Engine > --- PROPULSION ------- Wheel Compact Wheel > --- UTILITY ---------- Humpback > --- WEAPON ----------- Medium Laser Light Assault Rifle > --- INVENTORY -------- Ion Engine Light Treads Light Treads Light Treads Light Treads High-capacity Storage Unit Humpback Light Assault Rifle AWS/Autocannon Grenade Launcher [Rating: 11] Favorites ----------- Power Ion Engine Engine Ion Engine Propulsion Light Treads Treads Light Treads Leg Aluminum Leg Wheel Wheel Utility Small Storage Unit Storage Small Storage Unit Weapon Light Assault Rifle Energy Gun Medium Laser Ballistic Gun Light Assault Rifle Launcher Grenade Launcher Build | -11 -10 -10 -10 -9 ------- Run | Scr Mat Min Exi Min Slots Evolved . | . . . . . Power . | . . . . . Propulsion . | . . . . . Utility . | . . . . . Weapon . | . . . . . Parts Attached 23 | 4 9 . 2 8 Power 3 | . 2 . . 1 Engine 3 | . 2 . . 1 Core . | . . . . . Reactor . | . . . . . Propulsion 10 | 2 2 . 1 5 Treads 6 | 2 . . . 4 Leg . | . . . . . Wheel 4 | . 2 . 1 1 Hover . | . . . . . Flight . | . . . . . Utility 3 | 1 1 . 1 . Device . | . . . . . Storage 3 | 1 1 . 1 . Processor . | . . . . . Hackware . | . . . . . Protection . | . . . . . Artifact . | . . . . . Weapon 7 | 1 4 . . 2 Energy Gun 2 | 1 1 . . . Energy Cannon . | . . . . . Ballistic Gun 3 | . 2 . . 1 Ballistic Cannon . | . . . . . Launcher 2 | . 1 . . 1 Special Weapon . | . . . . . Impact Weapon . | . . . . . Slashing Weapon . | . . . . . Piercing Weapon . | . . . . . Special Melee Weapon . | . . . . . Unidentified Prototypes . | . . . . . Parts Lost 12 | . 1 . . 11 Power 2 | . . . . 2 Propulsion 5 | . . . . 5 Utility . | . . . . . Weapon 5 | . 1 . . 4 Highest Loss Streak 11 | . 1 . . 11 Average Slot Usage (%) 94 | . 100 100 94 75 Engine 13 | . 14 14 14 11 Treads 11 | . 14 14 9 8 Wheel 15 | . 14 14 18 18 Storage 24 | . 28 28 22 14 Energy Gun 13 | . 14 14 14 9 Ballistic Gun 13 | . 14 14 14 11 Naked Turns . | . . . . . Heaviest Build 88 | 14 20 20 88 88 Greatest Support 40 | 40 16 10 26 40 Greatest Overweight (x) 8 | . 1 1 8 5 Average Overweight (x) 1 | . . 1 1 3 Largest Inventory Capacity 24 | 8 10 10 24 24 Average Capacity 12 | 6 8 10 14 24 Most Carried 14 | 6 9 10 14 14 Average Carried 9 | 6 7 9 10 12 Final Capacity 24 | 8 10 10 24 24 Final Carried 14 | 6 9 10 14 7 Class Distribution -------------------- 78% | Mutant 21% | Hauler-Mutant Dominant Class ---------------- Mutant | -10/Materials Mutant | -10/Mines Mutant | -10/Exiles Hauler-Mutant | -9/Mines Resources | -11 -10 -10 -10 -9 ----------- Run | Scr Mat Min Exi Min Matter Collected 353 | 241 84 28 . . Remotely . | . . . . . Salvage Created 412 | 89 295 28 . . Parts 23 | 2 19 2 . . Haulers Intercepted . | . . . . . Recyclers Shooed 1 | . . 1 . . Parts Field Recycled . | . . . . . Retrieved Matter . | . . . . . Parts Self-Destructed . | . . . . . Prevented . | . . . . . Kills | -11 -10 -10 -10 -9 ------- Run | Scr Mat Min Exi Min Combat Hostiles Destroyed 11 | . 8 . . 3 Guns 5 | . 5 . . . AOE 6 | . 3 . . 3 Classes Destroyed 7 | 1 3 1 . 2 Tunneler 1 | . . 1 . . Recycler 2 | 1 1 . . . Watcher 1 | . 1 . . . Swarmer 3 | . 3 . . . Grunt 5 | . 5 . . . Demolisher 2 | . . . . 2 Assembled 1 | . . . . 1 Best Kill Streak 3 | 1 2 1 . 3 Combat Bots Only 3 | . 2 . . 3 Max Kills in Single Turn 2 | 1 2 1 . 1 Gunslinging . | . . . . . Exploded 2 | . 2 . . 1 Melee . | . . . . . Uniques/NPCs Destroyed . | . . . . . Combat | -11 -10 -10 -10 -9 -------- Run | Scr Mat Min Exi Min Damage Taken 1510 | . 197 . . 1313 Core 252 | . 12 . . 240 Absorbed by Shields . | . . . . . Core Remaining (%) 100 | 100 . . . . Volleys Fired 46 | 1 29 2 . 14 Largest 2 | 2 2 2 . 1 Hottest 70 | 60 70 70 . 30 Shots Fired 75 | 2 55 4 . 14 Gun 65 | 2 54 4 . 5 Cannon . | . . . . . Launcher 10 | . 1 . . 9 Special . | . . . . . Kinetic 35 | 1 27 2 . 5 Thermal 14 | . 12 2 . . Explosive 10 | . 1 . . 9 Electromagnetic 16 | 1 15 . . . Robot Hit Streak 7 | 1 5 7 . 2 Robot Miss Streak 4 | . 4 1 . 1 Penetration Max . | . . . . . Secondary Targets . | . . . . . Shots Hit Robots 45 | 1 33 3 . 8 Core Hits 33 | 1 15 1 . 16 Critical Hits 2 | 1 . 1 . . Critical Kills 2 | 1 . 1 . . Critical Parts Destroyed . | . . . . . Melee Attacks . | . . . . . Impact . | . . . . . Slashing . | . . . . . Piercing . | . . . . . Sneak Attacks . | . . . . . Combat Hostiles . | . . . . . Follow-up Attacks . | . . . . . Damage Inflicted 734 | 9 480 41 . 204 Guns 411 | 9 324 41 . 37 Cannons . | . . . . . Explosions 323 | . 156 . . 167 Melee . | . . . . . Ramming . | . . . . . Kinetic 201 | 9 139 16 . 37 Thermal 165 | . 140 25 . . Explosive 260 | . 93 . . 167 Electromagnetic 108 | . 108 . . . Impact . | . . . . . Slashing . | . . . . . Piercing . | . . . . . Highest Corruption 8 | . 2 2 2 8 Average Corruption 2 | . 2 2 2 2 Corruption Purged . | . . . . . Effects 13 | . 4 1 4 4 Message Errors 6 | . 2 . 3 1 Matter Fused 1 | . . . . 1 Heat Flow Errors 1 | . . . 1 . Energy Discharges 2 | . . 1 . 1 Data Loss (minor) 2 | . 1 . . 1 Weapon Failures 1 | . 1 . . . Overload Shots . | . . . . . Overflow Damage . | . . . . . Projectiles . | . . . . . Explosions . | . . . . . Melee . | . . . . . Knockbacks . | . . . . . Impact . | . . . . . Kinetic . | . . . . . Secondary . | . . . . . Self-Inflicted Damage 41 | . . . . 41 Shots 2 | . . . . 2 Rammed . | . . . . . Targets Rammed . | . . . . . Kicked . | . . . . . Crushed . | . . . . . Highest Temperature 249 | 20 98 30 249 . Average Temperature 44 | 15 33 18 139 . Received Heat Transfer 182 | . 102 . . 80 Siege Activations . | . . . . . Robots Corrupted . | . . . . . Combat Hostiles . | . . . . . Parts Fried . | . . . . . Impact Corruptions . | . . . . . Robots Melted . | . . . . . Combat Hostiles . | . . . . . Parts Melted . | . . . . . Heat Transferred 396 | . 322 74 . . Parts Sabotaged . | . . . . . Parts Stolen . | . . . . . Parts Stripped . | . . . . . Power Chain Reactions 1 | . 1 . . . Missiles Intercepted . | . . . . . Alert | -11 -10 -10 -10 -9 ------- Run | Scr Mat Min Exi Min Peak Influence 258 | 5 258 53 . 50 Initial 48 | . 3 48 . . Average 111 | 3 164 49 . 6 Maximum Alert Level 1 | . 1 . . . Low Security (%) 77 | 100 62 100 . 100 Level 1 22 | . 37 . . . Level 2 . | . . . . . Level 3 . | . . . . . Level 4 . | . . . . . Level 5 . | . . . . . High Security . | . . . . . Max Security . | . . . . . Squads Dispatched 5 | . 4 . . 1 Investigation 1 | . 1 . . . Extermination . | . . . . . Reinforcement 4 | . 3 . . 1 Assault . | . . . . . Garrison . | . . . . . Intercept . | . . . . . Construction Impeded 1 | . . . . 1 Haulers Reinforced . | . . . . . Stealth | -11 -10 -10 -10 -9 --------- Run | Scr Mat Min Exi Min Distress Signals 1 | . 1 . . . Communications Jammed . | . . . . . Distress Signals . | . . . . . Times Spotted 40 | . 16 . . 24 Peak Tracking Total 18 | . 4 . . 18 Tactical Retreats 2 | . 1 . . 1 Traps | -11 -10 -10 -10 -9 ------- Run | Scr Mat Min Exi Min Traps Triggered 4 | . 4 . . . Indirectly . | . . . . . Trap Hack Attempts . | . . . . . Triggered . | . . . . . Disarmed . | . . . . . Reprogrammed . | . . . . . Reused . | . . . . . Traps Extracted . | . . . . . Installed . | . . . . . Triggered . | . . . . . Machines | -11 -10 -10 -10 -9 ---------- Run | Scr Mat Min Exi Min Machines Disabled . | . . . . . Max in Single Turn . | . . . . . Machines Sabotaged . | . . . . . Garrisons Compromised . | . . . . . Overloaded Fab Kills . | . . . . . Fab Network Shutdowns . | . . . . . Hacking | -11 -10 -10 -10 -9 --------- Run | Scr Mat Min Exi Min Machines Accessed 3 | . 2 . 1 . Terminals 2 | . 2 . . . Fabricators . | . . . . . Repair Stations . | . . . . . Recycling Units . | . . . . . Scanalyzers . | . . . . . Garrison Access . | . . . . . Total Hacks 8 | . 7 . 1 . Successful 4 | . 3 . 1 . Failed 4 | . 4 . . . Catastrophic 1 | . 1 . . . Database Lockouts . | . . . . . Manual 3 | . 2 . 1 . Terminals 7 | . 7 . . . Fabricators . | . . . . . Repair Stations . | . . . . . Recycling Units . | . . . . . Scanalyzers . | . . . . . Garrison Access . | . . . . . Terminal Hacks 3 | . 2 . 1 . Prototype ID Bank 1 | . 1 . . . Zone Layout 1 | . 1 . . . EX-Prototype ID Bank 1 | . . . 1 . Fabricator Hacks . | . . . . . Repair Station Hacks . | . . . . . Recycling Unit Hacks . | . . . . . Scanalyzer . | . . . . . Garrison Access Hacks . | . . . . . Unauthorized Hacks 1 | . 1 . . . Terminals 1 | . 1 . . . Botnet 1 | . 1 . . . Fabricators . | . . . . . Repair Stations . | . . . . . Recycling Units . | . . . . . Scanalyzers . | . . . . . Garrison Access . | . . . . . Data Cores Recovered . | . . . . . Used . | . . . . . Hacking Detections 2 | . 2 . . . Full Trace Events . | . . . . . Feedback Events . | . . . . . Feedback Blocked . | . . . . . Robot Schematics Acquired . | . . . . . Robots Built . | . . . . . Matter . | . . . . . Time . | . . . . . Total Robot Build Rating . | . . . . . Part Schematics Acquired . | . . . . . Parts Built . | . . . . . Matter . | . . . . . Time . | . . . . . Total Part Build Rating . | . . . . . Parts Repaired . | . . . . . Time . | . . . . . Parts Recycled . | . . . . . Recycled Matter . | . . . . . Retrieved Matter . | . . . . . Retrieved Components . | . . . . . Parts Scanalyzed . | . . . . . Part Schematics Acquired . | . . . . . Parts Damaged . | . . . . . Bothacking | -11 -10 -10 -10 -9 ------------ Run | Scr Mat Min Exi Min Used RIF Installer . | . . . . . Robots Hacked . | . . . . . Non-combat . | . . . . . Combat . | . . . . . Robot Hacks Applied . | . . . . . Relay Couplers Released . | . . . . . Robots Rewired . | . . . . . Allies Hacked . | . . . . . Hacks Repelled . | . . . . . Allies | -11 -10 -10 -10 -9 -------- Run | Scr Mat Min Exi Min Total Allies . | . . . . . Largest Group . | . . . . . Highest-Rated Group . | . . . . . Highest-Rated Ally . | . . . . . Total Orders . | . . . . . Ally Attacks . | . . . . . Total Damage . | . . . . . Kills . | . . . . . Allies Corrupted . | . . . . . Allies Melted . | . . . . . Intel | -11 -10 -10 -10 -9 ------- Run | Scr Mat Min Exi Min Robot Analysis Total . | . . . . . Derelict Logs Recovered 1 | . . 1 . . Drone Launches . | . . . . . Drone Recoveries . | . . . . . Exploration | -11 -10 -10 -10 -9 ------------- Run | Scr Mat Min Exi Min Turns Passed 1270 | 19 548 151 383 169 Spaces Moved 1081 | 7 456 145 374 99 Core . | . . . . . Treads 15 | 7 . . . 8 Legs . | . . . . . Wheels 1066 | . 456 145 374 91 Hover . | . . . . . Flight . | . . . . . Fastest Speed 90 | 160 90 90 90 120 Average Speed 99 | 160 95 90 98 129 Slowest Speed 240 | 160 100 90 160 240 Overloaded Moves . | . . . . . Propulsion Burnouts . | . . . . . Robots Hopped . | . . . . . Cave-ins Triggered . | . . . . . Exploration Rate (%) 43 | 2 76 33 78 30 Regions Visited 4 Branch Regions 3 Pre-discovered Areas . | . . . . . Known Exits Taken . | . . . . . Unknown Exits Taken 4 | 1 1 1 1 . Scrap Searched . | . . . . . Spaces Dug . | . . . . . Terrain Destroyed 43 | . 10 . . 33 Melee . | . . . . . Projectile . | . . . . . AOE 43 | . 10 . . 33 Terrain Rammed . | . . . . . Walls Destroyed . | . . . . . Machines Disabled . | . . . . . Actions | -11 -10 -10 -10 -9 --------- Run | Scr Mat Min Exi Min Total 1208 | 11 518 162 389 128 Wait 33 | . 13 13 . 7 Move 1077 | 6 455 144 373 99 Hop . | . . . . . Pick Up 17 | . 7 2 8 . Fast Attach 5 | 1 3 . 1 . Attach 8 | . 1 . . 7 Detach . | . . . . . Swap 10 | 3 5 . 1 1 Drop 12 | . 5 1 6 . Fire 46 | 1 29 2 . 14 Melee . | . . . . . Ram . | . . . . . Kick . | . . . . . Crush . | . . . . . Escape Stasis . | . . . . . Rewire . | . . . . . Trap . | . . . . . Miscellaneous . | . . . . . Route ------- -11/Scrapyard -10/Materials (discovered 5 exits: [*Mat x3] / [*Min x2]) -10/Mines -10/Exiles (discovered 2 exits: [*Min x2]) -9/Mines History --------- Turn | Location | Event 9 | -11/Scrapyard | Discovered new exit (range 3) 20 | -11/Scrapyard | Entered Materials 74 | -10/Materials | Discovered new exit (range 13) 254 | -10/Materials | Discovered new exit (range 14) 302 | -10/Materials | Build established: Mutant 305 | -10/Materials | Discovered new exit (range 10) 500 | -10/Materials | Discovered new exit (range 12) 538 | -10/Materials | Discovered new exit (range 5) 568 | -10/Materials | Entered Mines 579 | -10/Mines | Found a hidden stash of uninstalled traps 653 | -10/Mines | Learned Materials terminal intel 715 | -10/Mines | Deemed a non-threat by the Exiles lab entrance 716 | -10/Mines | Discovered new exit (range 5) 719 | -10/Mines | Entered Exiles 735 | -10/Exiles | Discovered new exit (range 14) 748 | -10/Exiles | Met 8R-AWN 763 | -10/Exiles | Met EX-HEX 789 | -10/Exiles | Met EX-BIN 807 | -10/Exiles | Aligned with FarCom system 808 | -10/Exiles | Given EX-Vault access code 829 | -10/Exiles | Opened EX-Vault 837 | -10/Exiles | Found AWS/Autocannon 857 | -10/Exiles | Warned to stay clear of 0b10 Research branches 888 | -10/Exiles | Met EX-DEC 917 | -10/Exiles | Visited The Gauntlet 1088 | -10/Exiles | Discovered new exit (range 14) 1102 | -10/Exiles | Left Exiles lab with AWS/Autocannon 1102 | -10/Exiles | Entered Mines 1176 | -9/Mines | Assembled infested the area 1181 | -9/Mines | Assisted by a Guerilla fighting off Assembled 1247 | -9/Mines | Core integrity fell below 50% 1268 | -9/Mines | Core integrity fell below 20% 1271 | -9/Mines | Destroyed by as-69322 with Assembled Heavy Rifle Last Messages --------------- 01237_ The unstable cave ceiling collapses. 01238_ D-53 Grenadier destroyed. 01239_ The unstable cave ceiling collapses. 01240_ D-53 Grenadier destroyed. 01240_ ALERT: Construction progress impeded, dispatching reinforcements to local area. 01243_ Lgt. Treads destroyed. 01244_ Ion Engine destroyed. 01246_ The unstable cave ceiling collapses. 01249_ Grenade Launcher destroyed. 01250_ TND819PQTGOYBOUOALUPBOGDRFJM 01250_ The unstable cave ceiling collapses. 01253_ U-05 Engineer destroyed. 01255_ The unstable cave ceiling collapses. 01264_ Lgt. Treads destroyed. 01267_ System corrupted: Matter fused (-5). 01269_ Com. Wheel destroyed. 01269_ System corrupted by crushing effect (+4). 01270_ The unstable cave ceiling collapses. 01271_ Lgt. Assault Rifle destroyed. Map ----- +----------------------------------------------------+ | ?## ##?????????????? #??????????? | | ## ##??????????????# #??????????? | | ####???????????????# ??????????? | | ##??????????????????#$ ???????????? | | #??????????????????? ???????????? | | ##??????????????????? ???????????? | | ############??????????# ???????????? | | #??????????# #???????????? | | #??????????# #???????????? | | ########### #??????????# ######??????? | | ##?????????# #??????????# #??????? | | ##??????????# #??????????##### #??????? | | ##???????????# #####??????????# #??????? | | ?????????????# t ###?####???# #??????? | | ?????????????##### # ## #???# #??????? | | ??????????????#### ## #???# ###????? | | ??????????????## ## ##??# ##???? | | ??????????????# %# #### ##??? | | ?????????????## # # ## #??? | | ????????????## #??? | | ???????????## ## # # ##??? | | ??????????## # # # ##a ##???? | | ??????????# # # aa%! #????? | | ??????????# #???? | | ??????????# # ## #??? | | ??????????# @ ### #??? | | ??????????# # #?# #??? | | ??????????## aa ##??# ##??? | | ???????????## ##????###???? | | ????????????#### #???????????? | | ???????????????# ##???????????? | | ???????????????## ##????????????? | | ????????????????## #?????????????? | | ?????????????????#### #?????????????? | | ????????????????????## #?????????????? | | ?????????????????????## ?????????????? | | ??????????????????????# #????????????? | | ??????????????????????# #????????????? | | ??????????????????????# #????????????? | | ??????????????????????## #????????????? | | ???????????????????????? #????????????? | | ???????????????????????? ????????????? | | ???????????????????????? ??????????????? | | ????????????????????????????????????????? | | ????????????????????????????????????????? | | ????????????????????????????????????????? | | ????????????????????????????????????????? | | ????????????????????????????????????????? | | ????????????????????????????????????????? | | ????????????????????????????????????????? | +----------------------------------------------------+ Best States ------------- Heat Dissipation 25 Energy Generation 10 Energy Capacity 250 Matter Stores 300 Matter Capacity 300 Sight Range 16 Terrain Scan Density 10 Evasion (%) 42 Recoil Reduction 2 Item Schematics ----------------- None Robot Schematics ------------------ None Fabricated ------------ Nothing Alien Tech Used ----------------- None Achievements -------------- None Challenges ------------ None Game ------ Seed BombardmentAluminumFrame Manual? 0 Play Time 00:17:14 Cumulative 36.9 hours Start 2022.02.11 @ 12:21:49 End 2022.02.11 @ 12:38:40 Sessions 1 Manual Loads 0 Difficulty Rogue Special Mode None Game No. 22 Rogue 22 Adventurer 0 Explorer 0 Win Type - Total 1 Types 1/0/0/0/0/0/0/0/0 Lore% 39 Gallery% 40 Achievement% 32 Wizard Run 0 Options --------- ASCII 0 Keyboard 0 Movement Mouse Keybinds 0 Fullscreen 1 Font 18/SmallcapsGlow Map View 76x50 Tactical HUD 1 Map Filters NONE Filters NONE Steam 1 RUN: 8b349975-515b-41c0-a253-9ad9760f9003